[Event "GER-ch Youth U12M 2018"]
[Site "Willingen"]
[Date "2018.05.22"]
[Round "5"]
[White "Garner, Isaac"]
[Black "Pikalow, Michael"]
[Result "1-0"]
[ECO "B72"]
[WhiteElo "1751"]
[BlackElo "1540"]
[Annotator "NA RC"]
[PlyCount "105"]
[EventDate "2018.05.19"]
[EventType "swiss"]
[EventCountry "GER"]
[SourceTitle "playchess.com"]
[Source "ChessBase"]
[SourceQuality "1"]
[TimeControl "40/4500+30:900+30"]

1. e4 {[%emt 0:00:00]} c5 {[%emt 0:00:02]} 2. Nf3 {[%emt 0:00:00]} d6 {[%emt 0:00:04]} 3. d4 {[%emt 0:00:00]} cxd4 {[%emt 0:00:01]} 4. Nxd4 {[%emt 0:00:02]} Nf6 {[%emt 0:00:02]} 5. Nc3 {[%emt 0:00:10]} g6 {[%emt 0:00:01]} 6. Be3 {[%emt 0:00:23]} Bg7 {[%emt 0:00:05]} 7. Be2 {[%emt 0:00:08]} O-O {[%emt 0:00:05]} 8. Qd2 {[%emt 0:00:09]} Nc6 {[%emt 0:01:05]} 9. O-O-O {[%emt 0:00:25]} a6 {[%emt 0:20:23]} 10. Nxc6 {[%emt 0:07:46]} bxc6 {[%emt 0:00:04]} 11. e5 {[%emt 0:02:06]} Ne8 {[%emt 0:01:54]} 12. exd6 {[%emt 0:03:40]} Qxd6 {[%emt 0:01:30]} 13. Qxd6 {[%emt 0:09:33]} exd6 {[%emt 0:00:35]} 14. Bf3 {[%emt 0:02:44]} d5 {[%emt 0:02:24]} 15. Bc5 {[%emt 0:00:38]} Be6 {[%emt 0:02:22]} 16. Ne2 {[%emt 0:02:16]} Rb8 {[%emt 0:08:27]} 17. c3 {[%emt 0:01:20]} Be5 {[%emt 0:06:37]} 18. Bxf8 {[%emt 0:02:13]} Kxf8 {[%emt 0:00:07]} 19. Nd4 {[%emt 0:02:07]} Bd7 {[%emt 0:04:22]} 20. Be2 {[%emt 0:06:58]} Nd6 {[%emt 0:03:46]} 21. Nb3 {[%emt 0:15:53]} Ne4 {[%emt 0:02:24]} 22. Rhf1 Bf5 {[%emt 0:08:12]} 23. f4 {[%emt 0:06:09]} Bxc3 {[%emt 0:00:24]} 24. g4 {[%emt 0:04:32]} Bxb2+ {[%emt 0:00:59]} 25. Kxb2 {[%emt 0:00:21]} Be6 {[%emt 0:01:13]} 26. f5 {[%emt 0:01:40]} gxf5 {[%emt 0:00:10]} 27. gxf5 {[%emt 0:00:08]} Bc8 {[%emt 0:00:09]} 28. Kc2 {[%emt 0:00:32]} Rb4 {[%emt 0:01:35]} 29. Rd4 {[%emt 0:02:49]} Rxd4 {[%emt 0:01:34]} 30. Nxd4 {[%emt 0:00:10]} c5 {[%emt 0:00:06]} 31. Nc6 {[%emt 0:01:27]} Bd7 {[%emt 0:02:14]} 32. Ne5 {[%emt 0:01:27]} Bb5 {[%emt 0:00:32]} 33. Bxb5 axb5 {[%emt 0:00:10]} 34. Kd3 {[%emt 0:03:22]} Ke7 {[%emt 0:01:10]} 35. Rb1 {[%emt 0:00:51]} f6 {[%emt 0:07:29]} 36. Nf3 {[%emt 0:03:00]} b4 {[%emt 0:01:32]} 37. Re1 {[%emt 0:03:29]} Kd6 {[%emt 0:01:04]} 38. Rxe4 {[%emt 0:02:03]} dxe4+ {[%emt 0:00:05]} 39. Kxe4 {[%emt 0:00:07]} c4 {[%emt 0:01:25]} 40. Kd4 {[%emt 0:00:30]} b3 {[%emt 0:15:22]} 41. axb3 {[%emt 0:15:06]} cxb3 {[%emt 0:00:04]} 42. Nd2 {[%emt 0:00:09]} b2 {[%emt 0:00:07]} 43. Nc4+ {[%emt 0:00:07]} Ke7 {[%emt 0:00:11]} 44. Nxb2 {[%emt 0:00:05]} Kd6 {[%emt 0:00:13]} 45. Nd3 {[%emt 0:00:31]} Ke7 {[%emt 0:00:23]} 46. Kd5 {[%emt 0:00:15]} Kd7 {[%emt 0:00:23]} 47. Nf4 {[%emt 0:00:14]} Ke7 {[%emt 0:00:12]} 48. Nh5 {[%emt 0:01:45]} h6 {[%emt 0:00:18]} 49. h3 {[%emt 0:00:05]} Kf7 {[%emt 0:00:16]} 50. Kd6 {[%emt 0:00:05]} Kf8 {[%emt 0:00:07]} 51. Ke6 {[%emt 0:00:07]} Kg8 {[%emt 0:00:07]} 52. Kxf6 {[%emt 0:00:06]} Kf8 {[%emt 0:00:06]} 53. Kg6 {[%emt 0:00:18]} 1-0

[Event "GER-ch Youth U12M 2018"]
[Site "Willingen"]
[Date "2018.05.22"]
[Round "5"]
[White "Prieb, Robert"]
[Black "Wagner, Leopold Franziskus"]
[Result "1/2-1/2"]
[ECO "E32"]
[WhiteElo "1709"]
[BlackElo "2234"]
[Annotator "RC"]
[PlyCount "134"]
[EventDate "2018.05.19"]
[EventType "swiss"]
[EventCountry "GER"]
[SourceTitle "playchess.com"]
[Source "ChessBase"]
[SourceQuality "1"]
[TimeControl "40/4500+30:900+30"]

1. d4 {[%emt 0:00:00]} Nf6 {[%emt 0:00:07]} 2. c4 {[%emt 0:00:00]} e6 {[%emt 0:00:03]} 3. Nc3 {[%emt 0:00:00]} Bb4 {[%emt 0:00:06]} 4. Qc2 {[%emt 0:00:13]} O-O {[%emt 0:00:26]} 5. a3 {[%emt 0:00:32]} Bxc3+ {[%emt 0:00:39]} 6. Qxc3 {[%emt 0:00:11]} b6 {[%emt 0:01:19]} 7. Bg5 {[%emt 0:01:35]} h6 {[%emt 0:00:15]} 8. Bh4 {[%emt 0:00:33]} Bb7 {[%emt 0:00:13]} 9. f3 {[%emt 0:00:57]} d5 {[%emt 0:00:37]} 10. e3 {[%emt 0:01:29]} Nbd7 {[%emt 0:00:23]} 11. cxd5 {[%emt 0:00:36]} exd5 {[%emt 0:00:09]} 12. Bd3 {[%emt 0:01:11]} Re8 {[%emt 0:01:20]} 13. Ne2 {[%emt 0:01:18]} Rc8 {[%emt 0:05:22]} 14. O-O {[%emt 0:04:29]} Qe7 {[%emt 0:00:50]} 15. Bf2 {[%emt 0:00:48]} c5 {[%emt 0:01:21]} 16. Qd2 {[%emt 0:03:50]} Nb8 {[%emt 0:05:14]} 17. Rac1 {[%emt 0:04:10]} Nc6 {[%emt 0:00:38]} 18. dxc5 {[%emt 0:02:08]} bxc5 {[%emt 0:00:34]} 19. Bf5 {[%emt 0:00:30]} Rcd8 {[%emt 0:00:37]} 20. Qc3 {[%emt 0:04:30]} Ba6 {[%emt 0:05:56]} 21. Rfe1 {[%emt 0:07:14]} c4 {[%emt 0:16:35]} 22. Nd4 {[%emt 0:05:45]} Nb8 {[%emt 0:03:12]} 23. e4 {[%emt 0:08:35]} Qc7 {[%emt 0:04:21]} 24. b4 {[%emt 0:09:59]} dxe4 {[%emt 0:03:25]} 25. Bxe4 {[%emt 0:00:43]} Nxe4 {[%emt 0:01:22]} 26. Rxe4 {[%emt 0:00:35]} Rxe4 {[%emt 0:00:19]} 27. fxe4 {[%emt 0:00:07]} Qe5 {[%emt 0:00:59]} 28. Qe3 {[%emt 0:07:25]} Re8 {[%emt 0:14:37]} 29. Bg3 {[%emt 0:05:54]} Qh5 {[%emt 0:04:10]} 30. Nf5 {[%emt 0:06:16]} Qxf5 {[%emt 0:10:16]} 31. exf5 {[%emt 0:01:17]} Rxe3 {[%emt 0:00:17]} 32. Bxb8 {[%emt 0:00:10]} Rxa3 {[%emt 0:00:32]} 33. Bxa7 {[%emt 0:00:27]} Bb7 {[%emt 0:01:17]} 34. Bd4 {[%emt 0:00:50]} Bd5 {[%emt 0:00:37]} 35. b5 {[%emt 0:00:48]} Ra2 {[%emt 0:02:33]} 36. Bf2 {[%emt 0:01:47]} Kf8 {[%emt 0:00:21]} 37. b6 {[%emt 0:00:49]} Ke7 {[%emt 0:00:45]} 38. h3 {[%emt 0:01:36]} Rb2 {[%emt 0:00:36]} 39. g4 {[%emt 0:01:24]} f6 {[%emt 0:00:29]} 40. Bc5+ {[%emt 0:02:57]} Kd7 {[%emt 0:15:17]} 41. Rc3 {[%emt 0:03:30]} Kc6 {[%emt 0:00:00]} 42. Bf2 {[%emt 0:06:33]} Kd6 {[%emt 0:00:00]} 43. Bg3+ {[%emt 0:02:10]} Kc5 {[%emt 0:00:00]} 44. Bf2+ {[%emt 0:01:30]} Kb4 {[%emt 0:00:00]} 45. Be1 {[%emt 0:00:49]} Kb5 {[%emt 0:00:00]} 46. Bf2 {[%emt 0:00:29]} Ka4 {[%emt 0:02:13]} 47. h4 {[%emt 0:01:10]} Rb3 {[%emt 0:00:29]} 48. Rc2 {[%emt 0:01:09]} c3 {[%emt 0:00:32]} 49. Bd4 {[%emt 0:00:48]} Kb4 {[%emt 0:00:21]} 50. Kf2 {[%emt 0:00:38]} Be4 {[%emt 0:02:03]} 51. Rc1 {[%emt 0:01:07]} c2 {[%emt 0:00:30]} 52. Be3 {[%emt 0:00:59]} Kc4 {[%emt 0:01:21]} 53. Ke2 {[%emt 0:00:47]} Kc3 {[%emt 0:00:32]} 54. Ra1 {[%emt 0:00:49]} Rb1 {[%emt 0:00:33]} 55. Ra3+ {[%emt 0:00:29]} Kc4 {[%emt 0:00:32]} 56. Ra4+ {[%emt 0:00:28]} Kd5 {[%emt 0:00:22]} 57. Ra5+ {[%emt 0:00:25]} Kd6 {[%emt 0:00:31]} 58. Rc5 {[%emt 0:00:23]} Rb3 {[%emt 0:00:21]} 59. Rc7 {[%emt 0:00:26]} Rb5 {[%emt 0:00:38]} 60. Rc4 {[%emt 0:00:54]} Ke5 {[%emt 0:00:31]} 61. Kd2 {[%emt 0:00:30]} Rd5+ {[%emt 0:00:37]} 62. Kc1 {[%emt 0:00:35]} Rb5 {[%emt 0:00:32]} 63. Kd2 {[%emt 0:00:06]} Rb3 {[%emt 0:00:34]} 64. Rc5+ {[%emt 0:00:49]} Kd6 {[%emt 0:00:16]} 65. Rc3 {[%emt 0:00:16]} Rxc3 {[%emt 0:00:42]} 66. Kxc3 {[%emt 0:00:06]} Ke5 {[%emt 0:00:03]} 67. Kd2 {[%emt 0:00:41]} h5 {[%emt 0:00:59]} 1/2-1/2

[Event "GER-ch Youth U12M 2018"]
[Site "Willingen"]
[Date "2018.05.22"]
[Round "5"]
[White "Weidenhoefer, Max"]
[Black "Metzdorf, Matteo"]
[Result "0-1"]
[ECO "C02"]
[WhiteElo "1709"]
[BlackElo "1832"]
[Annotator "NA RC"]
[PlyCount "89"]
[EventDate "2018.05.19"]
[EventType "swiss"]
[EventCountry "GER"]
[SourceTitle "playchess.com"]
[Source "ChessBase"]
[SourceQuality "1"]
[TimeControl "40/4500+30:900+30"]

1. e4 {[%emt 0:00:00]} e6 {[%emt 0:00:06]} 2. d4 {[%emt 0:00:00]} d5 {[%emt 0:00:05]} 3. e5 {[%emt 0:00:00]} c5 {[%emt 0:00:05]} 4. c3 {[%emt 0:00:00]} Nc6 {[%emt 0:00:05]} 5. Nf3 {[%emt 0:00:00]} Qb6 {[%emt 0:00:03]} 6. Bd3 {[%emt 0:00:00]} Bd7 {[%emt 0:00:33]} 7. O-O {[%emt 0:00:09]} cxd4 {[%emt 0:00:29]} 8. cxd4 {[%emt 0:00:08]} Nxd4 {[%emt 0:01:43]} 9. Nxd4 {[%emt 0:00:06]} Qxd4 {[%emt 0:00:05]} 10. Nc3 {[%emt 0:00:07]} a6 {[%emt 0:00:15]} 11. Qe2 {[%emt 0:00:11]} Ne7 {[%emt 0:01:08]} 12. Rd1 {[%emt 0:00:34]} Qb6 {[%emt 0:05:31] C02: French: Advance Variation} (12... Nc6 13. Bxa6 Qxe5 14. Qxe5 Nxe5 15. Bxb7 Ra7 16. Bxd5 exd5 17. Re1 f6 18. f4 Bc5+ 19. Kh1 d4 20. Nb1 O-O 21. fxe5 fxe5 {½-½ (58) Capellades Subirana,M (2290)-Gonzalez Perez,A (2567) Barcelona 2014}) 13. Kh1 {[%emt 0:05:43]} Nc6 {[%emt 0:01:14]} 14. f4 {[%emt 0:03:33]} Qc7 {[%emt 0:04:02]} 15. a3 {[%emt 0:04:49]} Be7 $146 {[%emt 0:03:12]} ({Predecessor:} 15... Nd4 16. Qf2 Nb3 17. Rb1 g6 18. f5 gxf5 19. Bxf5 d4 20. Bc2 Nxc1 {0-1 (63) Zwick,R-Kargoll,P (2230) Speyer 1986}) 16. b4 {[%emt 0:08:19]} Nxb4 {[%emt 0:09:24]} 17. axb4 {[%emt 0:02:28]} Qxc3 {[%emt 0:03:30]} 18. Bd2 {[%emt 0:00:41]} Qc7 {[%emt 0:04:58]} 19. Rdc1 {[%emt 0:01:00]} Qb6 {[%emt 0:03:14]} 20. b5 {[%emt 0:04:26]} a5 {[%emt 0:06:25]} 21. Be3 {[%emt 0:07:07]} d4 {[%emt 0:05:42]} 22. Bf2 {[%emt 0:00:36]} Bc5 {[%emt 0:01:22]} 23. Ra4 {[%emt 0:02:26]} Bb4 {[%emt 0:05:46]} 24. Bxd4 {[%emt 0:06:04]} Qxd4 {[%emt 0:04:55]} 25. Rc4 {[%emt 0:00:12]} Qb6 {[%emt 0:03:08]} 26. Rcxb4 {[%emt 0:00:29]} O-O {[%emt 0:02:13]} 27. Rb1 {[%emt 0:08:12]} Rfd8 {[%emt 0:01:51]} 28. Qe4 {[%emt 0:10:11]} g6 {[%emt 0:03:17]} 29. Qf3 {[%emt 0:06:15]} Rac8 {[%emt 0:01:47]} 30. Raa1 {[%emt 0:10:42]} Rc3 {[%emt 0:04:00]} 31. Qe2 {[%emt 0:00:40]} Qd4 {[%emt 0:02:57]} 32. Rd1 {[%emt 0:00:31]} Qxf4 {[%emt 0:01:20]} 33. Rxa5 {[%emt 0:01:48]} Rdc8 {[%emt 0:03:40]} 34. Raa1 {[%emt 0:02:28]} R3c5 {[%emt 0:02:32]} 35. Re1 {[%emt 0:00:24]} Rd5 {[%emt 0:00:47]} 36. Rab1 {[%emt 0:01:41]} Rcc5 {[%emt 0:00:31]} 37. g3 $19 {[%emt 0:00:57]} Qxe5 {[%emt 0:00:59]} 38. Qa2 {[%emt 0:00:02]} Qc3 {[%emt 0:00:55]} 39. Be4 {[%emt 0:00:31]} Re5 {[%emt 0:00:25]} 40. Qa8+ {[%emt 0:00:09]} Kg7 {[%emt 0:15:24]} 41. Qxb7 Bxb5 {[%emt 0:00:00]} 42. Rbc1 {[%emt 0:02:54]} Qd4 {[%emt 0:00:00]} 43. Rcd1 {[%emt 0:02:05]} Qf2 {[%emt 0:00:00]} 44. Qa7 {[%emt 0:12:10]} Bc6 {[%emt 0:00:00]} 45. Qa1 {[%emt 0:00:56]} 0-1

[Event "GER-ch Youth U12M 2018"]
[Site "Willingen"]
[Date "2018.05.22"]
[Round "5"]
[White "Werner, Denis"]
[Black "Eilenberg, Jonas"]
[Result "0-1"]
[ECO "C11"]
[WhiteElo "1706"]
[BlackElo "1852"]
[Annotator "NA RC"]
[PlyCount "56"]
[EventDate "2018.05.19"]
[EventType "swiss"]
[EventCountry "GER"]
[SourceTitle "playchess.com"]
[Source "ChessBase"]
[SourceQuality "1"]
[TimeControl "40/4500+30:900+30"]

1. e4 {[%emt 0:00:00]} e6 {[%emt 0:00:16]} 2. Nf3 {[%emt 0:00:11]} d5 {[%emt 0:00:16]} 3. Nc3 {[%emt 0:00:19]} Nf6 {[%emt 0:00:16]} 4. e5 {[%emt 0:00:39]} Nfd7 {[%emt 0:00:06]} 5. d4 {[%emt 0:00:31]} c5 {[%emt 0:00:24]} 6. dxc5 {[%emt 0:00:39]} Nxc5 {[%emt 0:01:35]} 7. Bf4 {[%emt 0:02:16]} Nc6 {[%emt 0:01:15]} 8. Qd2 {[%emt 0:01:56]} Be7 {[%emt 0:04:28]} 9. h4 {[%emt 0:02:09]} a6 {[%emt 0:02:10]} 10. O-O-O {[%emt 0:04:43]} b5 {[%emt 0:00:51]} 11. Qe3 {[%emt 0:05:27]} Qa5 {[%emt 0:04:00]} 12. a3 {[%emt 0:03:11]} b4 {[%emt 0:03:17]} 13. axb4 {[%emt 0:00:52]} Nxb4 {[%emt 0:02:22]} 14. Nd2 {[%emt 0:05:40]} Bb7 {[%emt 0:07:26]} 15. Be2 {[%emt 0:04:15]} Rc8 {[%emt 0:01:07]} 16. Ndb1 {[%emt 0:04:19]} Ne4 {[%emt 0:02:16]} 17. Bd3 {[%emt 0:03:25]} Bc5 {[%emt 0:15:40]} 18. Qe2 {[%emt 0:01:17]} Nxf2 {[%emt 0:00:56]} 19. Rhf1 {[%emt 0:00:35]} Nxd1 {[%emt 0:00:31]} 20. Qxd1 {[%emt 0:00:21]} d4 {[%emt 0:00:15]} 21. Bg5 {[%emt 0:02:19]} dxc3 {[%emt 0:00:53]} 22. Nxc3 {[%emt 0:00:29]} Nd5 {[%emt 0:02:58]} 23. Qh5 {[%emt 0:00:36]} Rc7 {[%emt 0:01:24]} 24. Ne4 {[%emt 0:00:47]} Qa1+ {[%emt 0:01:42]} 25. Kd2 {[%emt 0:00:45]} Bb4+ {[%emt 0:00:21]} 26. Ke2 {[%emt 0:00:14]} Qxb2 {[%emt 0:00:45]} 27. Nd6+ {[%emt 0:01:22]} Bxd6 {[%emt 0:00:17]} 28. exd6 {[%emt 0:00:08]} Qe5+ {[%emt 0:01:09]} 0-1

[Event "GER-ch Youth U12M 2018"]
[Site "Willingen"]
[Date "2018.05.22"]
[Round "5"]
[White "Gluma, Christian"]
[Black "Lutz, Adam"]
[Result "0-1"]
[ECO "B83"]
[WhiteElo "1601"]
[BlackElo "1761"]
[Annotator "NA RC"]
[PlyCount "68"]
[EventDate "2018.05.19"]
[EventType "swiss"]
[EventCountry "GER"]
[SourceTitle "playchess.com"]
[Source "ChessBase"]
[SourceQuality "1"]
[TimeControl "40/4500+30:900+30"]

1. e4 {[%emt 0:00:00]} c5 {[%emt 0:00:13]} 2. Nf3 {[%emt 0:00:00]} e6 {[%emt 0:00:12]} 3. d4 {[%emt 0:00:00]} cxd4 {[%emt 0:00:21]} 4. Nxd4 {[%emt 0:00:05]} Nf6 {[%emt 0:00:07]} 5. Nc3 {[%emt 0:00:09]} d6 {[%emt 0:00:04]} 6. Be2 {[%emt 0:00:50]} Be7 {[%emt 0:00:40]} 7. O-O {[%emt 0:00:33]} a6 {[%emt 0:01:00]} 8. Be3 {[%emt 0:00:35]} Qc7 {[%emt 0:00:52]} 9. a4 {[%emt 0:08:24]} O-O {[%emt 0:00:38]} 10. f3 {[%emt 0:00:39]} b6 {[%emt 0:01:52]} 11. Qd2 {[%emt 0:03:57]} Bb7 {[%emt 0:01:25]} 12. Rfc1 {[%emt 0:01:50]} Rd8 {[%emt 0:02:13]} 13. Nb3 {[%emt 0:11:53]} Nbd7 {[%emt 0:08:03]} 14. Nd1 {[%emt 0:05:29]} d5 {[%emt 0:02:06]} 15. exd5 {[%emt 0:00:55]} Nxd5 {[%emt 0:00:13]} 16. Bf2 {[%emt 0:01:35]} Nc5 {[%emt 0:02:51]} 17. Nxc5 {[%emt 0:03:11]} Bxc5 {[%emt 0:00:09]} 18. Qe1 {[%emt 0:03:48]} Nf4 {[%emt 0:01:30]} 19. Bf1 {[%emt 0:01:16]} Rd5 {[%emt 0:11:30]} 20. Bxc5 {[%emt 0:06:09]} Qxc5+ {[%emt 0:00:48]} 21. Qf2 {[%emt 0:07:37]} Qd6 {[%emt 0:01:25]} 22. Ne3 {[%emt 0:05:15]} Rg5 {[%emt 0:05:23]} 23. Qh4 {[%emt 0:03:59]} Qe5 {[%emt 0:11:14]} 24. Kh1 {[%emt 0:04:34]} Rh5 {[%emt 0:04:14]} 25. Nc4 {[%emt 0:02:19]} Qc7 {[%emt 0:03:19]} 26. Qg3 {[%emt 0:03:12]} h6 {[%emt 0:05:10]} 27. Nxb6 {[%emt 0:04:01]} Rd8 {[%emt 0:01:09]} 28. Rd1 {[%emt 0:00:34]} Rxd1 {[%emt 0:02:06]} 29. Rxd1 {[%emt 0:00:08]} Rg5 {[%emt 0:00:40]} 30. Qf2 {[%emt 0:00:48]} Qc6 {[%emt 0:01:25]} 31. a5 {[%emt 0:01:38]} Kh7 {[%emt 0:01:05]} 32. Bd3+ {[%emt 0:01:10]} f5 {[%emt 0:00:48]} 33. Bf1 {[%emt 0:02:14]} Nh3 {[%emt 0:00:44]} 34. Qe2 {[%emt 0:01:15]} Qc5 {[%emt 0:00:17]} 0-1

[Event "GER-ch Youth U12M 2018"]
[Site "Willingen"]
[Date "2018.05.22"]
[Round "5"]
[White "Stepanov, Maximilian"]
[Black "Hänselmann, Hendrik"]
[Result "1-0"]
[ECO "A45"]
[WhiteElo "1300"]
[BlackElo "1692"]
[Annotator "NA RC"]
[PlyCount "161"]
[EventDate "2018.05.19"]
[EventType "swiss"]
[EventCountry "GER"]
[SourceTitle "playchess.com"]
[Source "ChessBase"]
[SourceQuality "1"]
[TimeControl "40/4500+30:900+30"]

1. d4 {[%emt 0:00:00]} Nf6 {[%emt 0:00:05]} 2. c3 {[%emt 0:00:00]} e6 {[%emt 0:00:08]} 3. Nf3 {[%emt 0:00:06]} c5 {[%emt 0:00:50]} 4. Bf4 {[%emt 0:00:31]} Be7 {[%emt 0:00:22]} 5. e3 {[%emt 0:00:24]} d5 {[%emt 0:00:31]} 6. h3 {[%emt 0:00:42]} O-O {[%emt 0:00:18]} 7. Nbd2 {[%emt 0:00:15]} b6 {[%emt 0:00:28]} 8. Be2 {[%emt 0:00:26]} Ba6 {[%emt 0:00:29]} 9. O-O {[%emt 0:00:32]} Bxe2 {[%emt 0:02:27]} 10. Qxe2 {[%emt 0:00:12]} Nc6 {[%emt 0:00:55]} 11. Ne5 {[%emt 0:01:41]} Qc8 {[%emt 0:03:22]} 12. Ndf3 {[%emt 0:02:39]} Qb7 {[%emt 0:03:50]} 13. Nxc6 {[%emt 0:00:50]} Qxc6 {[%emt 0:00:06]} 14. Ne5 {[%emt 0:00:07]} Qb7 {[%emt 0:00:27]} 15. Rab1 {[%emt 0:01:31]} Rac8 {[%emt 0:03:24]} 16. Rfc1 {[%emt 0:01:45]} Rfd8 {[%emt 0:04:03]} 17. Ng4 {[%emt 0:03:41]} Nxg4 {[%emt 0:03:54]} 18. Qxg4 {[%emt 0:00:17]} c4 {[%emt 0:01:07]} 19. f3 {[%emt 0:00:38]} b5 {[%emt 0:05:20]} 20. Re1 {[%emt 0:02:01]} Re8 {[%emt 0:09:07]} 21. Bh6 {[%emt 0:00:22]} Bf8 {[%emt 0:00:30]} 22. e4 {[%emt 0:00:19]} Kh8 {[%emt 0:01:09]} 23. Bf4 {[%emt 0:00:21]} a5 {[%emt 0:03:20]} 24. exd5 {[%emt 0:01:47]} exd5 {[%emt 0:00:53]} 25. Qf5 {[%emt 0:01:30]} b4 {[%emt 0:02:15]} 26. Re5 {[%emt 0:01:10]} Rxe5 {[%emt 0:00:53]} 27. Bxe5 {[%emt 0:00:30]} Re8 {[%emt 0:01:13]} 28. a3 {[%emt 0:05:33]} Qc8 {[%emt 0:04:04]} 29. Qxf7 {[%emt 0:01:17]} Qe6 {[%emt 0:03:06]} 30. Qa7 {[%emt 0:04:58]} Qg6 {[%emt 0:04:28]} 31. Re1 {[%emt 0:02:55]} bxa3 {[%emt 0:01:05]} 32. bxa3 {[%emt 0:06:04]} Kg8 {[%emt 0:02:17]} 33. Qxa5 {[%emt 0:00:18]} Qc6 {[%emt 0:00:34]} 34. a4 {[%emt 0:09:00]} Ra8 {[%emt 0:05:42]} 35. Qb5 {[%emt 0:00:19]} Qxb5 {[%emt 0:00:51]} 36. axb5 {[%emt 0:00:35]} Ra3 {[%emt 0:00:30]} 37. b6 {[%emt 0:00:59]} Rb3 {[%emt 0:00:09]} 38. Bc7 {[%emt 0:00:15]} Ba3 {[%emt 0:01:11]} 39. Ra1 {[%emt 0:01:42]} Bb2 {[%emt 0:01:30]} 40. Ra8+ {[%emt 0:01:38]} Kf7 {[%emt 0:15:09]} 41. Ra7 {[%emt 0:15:07]} Bxc3 {[%emt 0:00:46]} 42. Be5+ {[%emt 0:00:10]} Ke6 {[%emt 0:00:38]} 43. b7 {[%emt 0:00:14]} g6 {[%emt 0:02:19]} 44. b8=Q {[%emt 0:00:58]} Rxb8 {[%emt 0:00:43]} 45. Bxb8 {[%emt 0:00:29]} Bxd4+ {[%emt 0:00:06]} 46. Kf1 {[%emt 0:00:12]} Bxa7 {[%emt 0:00:06]} 47. Bxa7 {[%emt 0:00:14]} Ke5 {[%emt 0:00:21]} 48. Ke2 {[%emt 0:00:38]} Kf4 {[%emt 0:02:04]} 49. Bb8+ {[%emt 0:00:18]} Kf5 {[%emt 0:00:20]} 50. Ke3 {[%emt 0:00:13]} c3 {[%emt 0:02:37]} 51. Kd3 {[%emt 0:00:44]} d4 {[%emt 0:00:10]} 52. g3 {[%emt 0:00:52]} g5 {[%emt 0:03:07]} 53. Ba7 {[%emt 0:00:37]} h5 {[%emt 0:00:14]} 54. Bxd4 {[%emt 0:04:45]} c2 {[%emt 0:00:34]} 55. Kxc2 {[%emt 0:00:32]} h4 {[%emt 0:00:25]} 56. Bf2 {[%emt 0:00:44]} hxg3 {[%emt 0:00:21]} 57. Bxg3 {[%emt 0:00:06]} Kg6 {[%emt 0:00:07]} 58. Kd3 {[%emt 0:00:15]} Kf5 {[%emt 0:00:06]} 59. Ke3 {[%emt 0:00:14]} Kg6 {[%emt 0:00:18]} 60. h4 {[%emt 0:00:40]} gxh4 {[%emt 0:00:06]} 61. Bxh4 {[%emt 0:00:04]} Kf5 {[%emt 0:00:07]} 62. f4 {[%emt 0:00:29]} Ke6 {[%emt 0:00:08]} 63. Ke4 {[%emt 0:00:11]} Kf7 {[%emt 0:00:05]} 64. Kf5 {[%emt 0:00:09]} Ke8 {[%emt 0:00:09]} 65. Kg6 {[%emt 0:00:11]} Kf8 {[%emt 0:00:08]} 66. Kf6 {[%emt 0:00:09]} Ke8 {[%emt 0:00:16]} 67. Kg7 {[%emt 0:00:07]} Kd7 {[%emt 0:00:05]} 68. f5 {[%emt 0:00:10]} Ke8 {[%emt 0:00:05]} 69. f6 {[%emt 0:00:13]} Kd7 {[%emt 0:00:03]} 70. f7 {[%emt 0:00:07]} Kc6 {[%emt 0:00:06]} 71. f8=Q {[%emt 0:00:08]} Kd5 {[%emt 0:00:09]} 72. Qe7 {[%emt 0:00:10]} Kc6 {[%emt 0:00:00]} 73. Qd8 {[%emt 0:00:16]} Kc5 {[%emt 0:00:03]} 74. Qd7 {[%emt 0:00:10]} Kc4 {[%emt 0:00:07]} 75. Bf2 {[%emt 0:00:11]} Kc3 {[%emt 0:00:04]} 76. Qd5 Kb4 77. Be1+ {[%emt 0:01:20]} Ka3 {[%emt 0:00:41]} 78. Qb5 {[%emt 0:00:19]} Ka2 {[%emt 0:00:08]} 79. Qb4 {[%emt 0:00:46]} Ka1 {[%emt 0:00:06]} 80. Bc3+ {[%emt 0:00:08]} Ka2 {[%emt 0:00:05]} 81. Qb2# 1-0

[Event "GER-ch Youth U12M 2018"]
[Site "Willingen"]
[Date "2018.05.23"]
[Round "6"]
[White "Laux, Dominik"]
[Black "Prieb, Robert"]
[Result "*"]
[ECO "A45"]
[WhiteElo "1889"]
[BlackElo "1709"]
[Annotator "NA RC"]
[PlyCount "89"]
[EventDate "2018.05.19"]
[EventType "swiss"]
[EventCountry "GER"]
[SourceTitle "playchess.com"]
[Source "ChessBase"]
[SourceQuality "1"]
[TimeControl "40/4500+30:900+30"]

1. d4 {[%emt 0:00:00]} Nf6 {[%emt 0:00:18]} 2. Bg5 {[%emt 0:00:00]} e6 {[%emt 0:01:26]} 3. Nd2 {[%emt 0:00:05]} d5 {[%emt 0:00:45]} 4. e3 {[%emt 0:00:24]} c5 {[%emt 0:01:32]} 5. c3 {[%emt 0:00:54]} Nc6 {[%emt 0:01:44]} 6. Bd3 {[%emt 0:02:45]} Be7 {[%emt 0:03:08]} 7. f4 {[%emt 0:03:20]} O-O {[%emt 0:03:56]} 8. Ngf3 {[%emt 0:01:16]} Ng4 {[%emt 0:03:35]} 9. Bxe7 {[%emt 0:00:55]} Qxe7 {[%emt 0:01:00]} 10. Qe2 {[%emt 0:06:26]} b6 {[%emt 0:03:06]} 11. O-O {[%emt 0:02:31]} Nf6 {[%emt 0:02:30]} 12. Ne5 {[%emt 0:04:25]} Bb7 {[%emt 0:03:00]} 13. Rf3 {[%emt 0:05:10]} Ne4 {[%emt 0:10:18]} 14. Rh3 {[%emt 0:05:11]} g6 {[%emt 0:03:04]} 15. Bc2 {[%emt 0:07:50]} Nxe5 {[%emt 0:07:26]} 16. fxe5 {[%emt 0:01:24]} f5 {[%emt 0:06:11]} 17. Rf3 {[%emt 0:05:09]} Ng5 {[%emt 0:03:49]} 18. Rf2 {[%emt 0:01:34]} Rf7 {[%emt 0:01:14]} 19. Raf1 {[%emt 0:02:56]} a5 {[%emt 0:01:39]} 20. Bd3 {[%emt 0:04:21]} c4 {[%emt 0:01:25]} 21. Bc2 {[%emt 0:00:17]} b5 {[%emt 0:01:13]} 22. a4 {[%emt 0:03:32]} b4 {[%emt 0:02:51]} 23. h4 {[%emt 0:03:00]} Ne4 {[%emt 0:00:48]} 24. Nxe4 {[%emt 0:02:51]} dxe4 {[%emt 0:00:34]} 25. Qxc4 {[%emt 0:02:39]} bxc3 {[%emt 0:01:02]} 26. Bb3 {[%emt 0:03:27]} Bd5 {[%emt 0:05:26]} 27. Qxc3 {[%emt 0:00:45]} Qxh4 {[%emt 0:01:31]} 28. Bxd5 {[%emt 0:00:36]} exd5 {[%emt 0:00:05]} 29. Qc6 {[%emt 0:00:46]} Qd8 {[%emt 0:01:11]} 30. Rc1 {[%emt 0:00:48]} Raa7 {[%emt 0:01:14]} 31. Qc8 {[%emt 0:02:52]} Qxc8 {[%emt 0:05:16]} 32. Rxc8+ {[%emt 0:00:13]} Kg7 {[%emt 0:01:32]} 33. Rc5 {[%emt 0:01:07]} Rfd7 {[%emt 0:00:48]} 34. Rfc2 {[%emt 0:00:58]} g5 {[%emt 0:02:16]} 35. Rf2 {[%emt 0:02:43]} f4 {[%emt 0:01:33]} 36. exf4 {[%emt 0:01:14]} e3 {[%emt 0:00:31]} 37. Re2 {[%emt 0:03:38]} gxf4 {[%emt 0:00:26]} 38. g3 {[%emt 0:00:39]} Kg6 {[%emt 0:02:39]} 39. gxf4 {[%emt 0:00:58]} Kf5 {[%emt 0:00:51]} 40. Rxe3 {[%emt 0:01:00]} Kxf4 {[%emt 0:15:19]} 41. Kf2 {[%emt 0:15:42]} Rab7 {[%emt 0:00:00]} 42. b3 {[%emt 0:00:00]} Rb4 {[%emt 0:00:00]} 43. e6 {[%emt 0:00:00]} Re7 {[%emt 0:00:00]} 44. Rxd5 {[%emt 0:00:00]} h5 {[%emt 0:00:00]} 45. Rxh5 *